Cogmind - Beta 14 @@@ ROGUE MODE // 2025.01.07 @ 06:02:21 Player: Niko Result: Destroyed by YI-UF0 with YI-UF0's Doublenader Performance ------------- Evolutions (0) 0 Regions Visited (2) 400 Robots Destroyed (12) 60 Value Destroyed (336) 336 Prototype IDs (0) 0 Alien Tech Used (0) 0 Bonus (0) 0 TOTAL SCORE: 796 Bonus ------- None Cogmind --------- Core Integrity 0/250 Matter 204/300 Energy 99/100 System Corruption 1% Temperature Cool (0) Movement Core (100) Ox1 Location -10/Mines Parts ------- > --- POWER (1) -------- (None) > --- PROPULSION (2) --- (None) > --- UTILITY (2) ------ Small Storage Unit Hacking Suite > --- WEAPON (2) ------- (None) > --- INVENTORY (8) ---- Light Ion Engine Aluminum Leg Aluminum Leg Aluminum Leg Medium Laser Datajack Datajack Mining Laser Peak State ------------ > --- POWER ------------ Light Nuclear Core > --- PROPULSION ------- Wheel Compact Wheel > --- UTILITY ---------- Small Storage Unit Hacking Suite > --- WEAPON ----------- Assault Rifle Datajack > --- INVENTORY -------- Light Ion Engine Aluminum Leg Aluminum Leg Aluminum Leg Wheel Medium Laser Light Assault Rifle Datajack [Rating: 11] Favorites ----------- Power Light Nuclear Core Engine Light Ion Engine Power Core Light Nuclear Core Propulsion Wheel Wheel Wheel Utility Small Storage Unit Storage Small Storage Unit Hackware Hacking Suite Weapon Assault Rifle Energy Gun Medium Laser Ballistic Gun Assault Rifle Special Melee Weapon Datajack Build | -11 -10 -10 ------- Run | Yrd Mat Min Slots Evolved . | . . . Power . | . . . Propulsion . | . . . Utility . | . . . Weapon . | . . . Parts Attached 16 | 6 10 . Power 3 | 1 2 . Engine 1 | 1 . . Core 2 | . 2 . Reactor . | . . . Propulsion 6 | 2 4 . Treads . | . . . Leg . | . . . Wheel 6 | 2 4 . Hover . | . . . Flight . | . . . Utility 2 | 1 1 . Device . | . . . Storage 1 | 1 . . Processor . | . . . Hackware 1 | . 1 . Protection . | . . . Artifact . | . . . Weapon 5 | 2 3 . Energy Gun 1 | 1 . . Energy Cannon . | . . . Ballistic Gun 3 | 1 2 . Ballistic Cannon . | . . . Launcher . | . . . Special Weapon . | . . . Impact Weapon . | . . . Slashing Weapon . | . . . Piercing Weapon . | . . . Special Melee Weapon 1 | . 1 . Unidentified Prototypes . | . . . Parts Lost 6 | . 1 5 Power 2 | . 1 1 Propulsion 2 | . . 2 Utility . | . . . Weapon 2 | . . 2 Highest Loss Streak 5 | . 1 5 To Critical Strikes . | . . . Average Slot Usage (%) 90 | . 87 97 Engine 5 | . 7 . Core 8 | . 6 12 Wheel 27 | . 27 27 Storage 14 | . 14 14 Hackware 6 | . 3 14 Energy Gun 7 | . 10 . Ballistic Gun 19 | . 16 27 Peak Build Rating 11 | 6 11 11 Average Rating 8 | 3 7 10 On Entrance 5 | . 6 11 Naked Turns . | . . . Heaviest Build 14 | 12 14 13 Greatest Support 26 | 26 26 26 Greatest Overweight (x) 1 | . 1 1 Average Overweight (x) . | . . . Largest Inventory Capacity 8 | 8 8 8 Average Capacity 7 | 6 8 8 Most Carried 8 | 4 8 8 Average Carried 5 | 1 5 8 Final Capacity 8 | 8 8 8 Final Carried 8 | 1 8 8 Class Distribution -------------------- 100% | Mutant Dominant Class ---------------- Mutant | -10/Materials Mutant | -10/Mines Resources | -11 -10 -10 ----------- Run | Yrd Mat Min Matter Collected 372 | 215 157 . Remotely . | . . . Salvage Created 415 | . 415 . Parts 30 | . 30 . Haulers Intercepted . | . . . Recyclers Shooed . | . . . Parts Field Recycled . | . . . Retrieved Matter . | . . . Parts Self-Destructed . | . . . Prevented . | . . . Kills | -11 -10 -10 ------- Run | Yrd Mat Min Combat Hostiles Destroyed 8 | . 8 . Guns 8 | . 8 . Classes Destroyed 4 | . 4 . Worker 1 | . 1 . Builder 1 | . 1 . Operator 2 | . 2 . Grunt 8 | . 8 . Best Kill Streak 5 | . 5 . Combat Bots Only 4 | . 4 . Max Kills in Single Turn 1 | . 1 . Gunslinging . | . . . Exploded . | . . . Melee . | . . . Uniques/NPCs Destroyed . | . . . Combat | -11 -10 -10 -------- Run | Yrd Mat Min Hostile Shots Fired 56 | . 36 20 Missed 17 | . 11 6 Damage Taken 746 | . 286 460 Core 267 | . 122 145 Absorbed by Shields . | . . . Core Remaining (%) 100 | 100 . . Volleys Fired 43 | . 40 3 Largest 2 | . 2 2 Hottest 70 | . 70 40 Shots Fired 85 | . 80 5 Gun 85 | . 80 5 Cannon . | . . . Launcher . | . . . Special . | . . . Kinetic 48 | . 43 5 Thermal 37 | . 37 . Explosive . | . . . Electromagnetic . | . . . Robot Hit Streak 7 | . 7 3 Robot Miss Streak 5 | . 5 1 Penetration Max . | . . . Secondary Targets 1 | . 1 . Max Gunslinging Chain 1 | . 1 . Shots Hit Robots 55 | . 51 4 Core Hits 23 | . 22 1 Critical Kills 1 | . 1 . Critical Parts Destroyed . | . . . Critical Strikes 2 | . 2 . Burn 1 | . 1 . Destroy 1 | . 1 . Melee Attacks 1 | . 1 . Impact . | . . . Slashing . | . . . Piercing . | . . . Sneak Attacks . | . . . Combat Hostiles . | . . . Follow-up Attacks . | . . . Damage Inflicted 687 | . 641 46 Guns 687 | . 641 46 Cannons . | . . . Explosions . | . . . Melee . | . . . Ramming . | . . . Kinetic 348 | . 302 46 Thermal 339 | . 339 . Explosive . | . . . Electromagnetic . | . . . Impact . | . . . Slashing . | . . . Piercing . | . . . Highest Corruption 1 | . 1 1 Average Corruption 1 | . 1 1 Corruption Purged . | . . . Corruption Blocked . | . . . Effects 1 | . . 1 Matter Fused 1 | . . 1 Overload Shots . | . . . Overflow Damage . | . . . Projectiles . | . . . Explosions . | . . . Melee . | . . . Knockbacks . | . . . Impact . | . . . Kinetic . | . . . Secondary . | . . . Self-Inflicted Damage . | . . . Shots . | . . . Rammed . | . . . Targets Rammed . | . . . Kicked . | . . . Crushed . | . . . Highest Temperature 144 | . 144 . Average Temperature 48 | . 48 . Received Heat Transfer 159 | . 159 . Siege Activations . | . . . Robots Corrupted . | . . . Combat Hostiles . | . . . Parts Fried . | . . . Impact Corruptions . | . . . Robots Melted . | . . . Combat Hostiles . | . . . Parts Melted 2 | . 2 . Heat Transferred 1073 | . 1073 . Parts Sabotaged . | . . . Parts Stolen . | . . . Parts Stripped . | . . . Power Chain Reactions . | . . . Alert | -11 -10 -10 ------- Run | Yrd Mat Min Peak Influence 243 | . 243 28 Initial 28 | . . 28 Average 58 | . 76 26 Maximum Alert Level 1 | . 1 . Low Security (%) 95 | 100 93 100 Level 1 4 | . 6 . Level 2 . | . . . Level 3 . | . . . Level 4 . | . . . Level 5 . | . . . High Security . | . . . Max Security . | . . . Squads Dispatched 3 | . 3 . Investigation 2 | . 2 . Extermination . | . . . Reinforcement 1 | . 1 . Assault . | . . . Garrison . | . . . Intercept . | . . . Searches Triggered . | . . . Construction Impeded . | . . . Haulers Reinforced . | . . . Active Scanning Responses . | . . . Cargo Convoy Interrupts . | . . . Stealth | -11 -10 -10 --------- Run | Yrd Mat Min Distress Signals 1 | . 1 . Communications Jammed . | . . . Distress Signals . | . . . Times Spotted 22 | . 18 4 Peak Tracking Total 4 | . 3 4 Tactical Retreats 1 | . 1 . Traps | -11 -10 -10 ------- Run | Yrd Mat Min Traps Triggered 3 | . 3 . Indirectly . | . . . Trap Hack Attempts . | . . . Triggered . | . . . Disarmed . | . . . Reprogrammed . | . . . Reused . | . . . Traps Extracted . | . . . Installed . | . . . Triggered . | . . . Machines | -11 -10 -10 ---------- Run | Yrd Mat Min Machines Disabled . | . . . Max in Single Turn . | . . . Machines Repaired . | . . . Machines Dismantled . | . . . Machines Sabotaged . | . . . Overloaded Fab Kills . | . . . Hacking | -11 -10 -10 --------- Run | Yrd Mat Min Machines Accessed 2 | . 2 . Terminals 2 | . 2 . Fabricators . | . . . Repair Stations . | . . . Recycling Units . | . . . Scanalyzers . | . . . Garrison Access . | . . . Total Hacks 6 | . 6 . Successful 3 | . 3 . Failed 3 | . 3 . Catastrophic . | . . . Database Lockouts . | . . . Manual . | . . . Terminals 6 | . 6 . Fabricators . | . . . Repair Stations . | . . . Recycling Units . | . . . Scanalyzers . | . . . Garrison Access . | . . . Terminal Hacks 3 | . 3 . Record 2 | . 2 . Alert Level 1 | . 1 . Fabricator Hacks . | . . . Repair Station Hacks . | . . . Recycling Unit Hacks . | . . . Scanalyzer . | . . . Garrison Access Hacks . | . . . Unauthorized Hacks . | . . . Terminals . | . . . Fabricators . | . . . Repair Stations . | . . . Recycling Units . | . . . Scanalyzers . | . . . Garrison Access . | . . . Data Cores Recovered . | . . . Used . | . . . Hacking Detections 2 | . 2 . Full Trace Events 1 | . 1 . Feedback Events 1 | . 1 . Corruption 1 | . 1 . Feedback Blocked . | . . . Robot Schematics Acquired . | . . . Robots Built . | . . . Authchips . | . . . Time . | . . . Total Robot Build Rating . | . . . Part Schematics Acquired . | . . . Parts Built . | . . . Authchips . | . . . Time . | . . . Total Part Build Rating . | . . . Parts Repaired . | . . . Time . | . . . Parts Recycled . | . . . Recycled Matter . | . . . Retrieved Matter . | . . . Retrieved Components . | . . . Parts Scanalyzed . | . . . Part Schematics Acquired . | . . . Parts Damaged . | . . . Bothacking | -11 -10 -10 ------------ Run | Yrd Mat Min Used RIF Installer . | . . . Robots Hacked 1 | . 1 . Non-combat 1 | . 1 . Combat . | . . . Robot Hacks Applied 1 | . 1 . parse_system 1 | . 1 . Relay Couplers Released . | . . . Fabnet Peak Effective % . | . . . Robots Rewired . | . . . Allies Hacked . | . . . Hacks Repelled . | . . . Allies | -11 -10 -10 -------- Run | Yrd Mat Min Total Allies . | . . . Largest Group . | . . . Highest-Rated Group . | . . . Highest-Rated Ally . | . . . Total Orders . | . . . Ally Attacks . | . . . Total Damage . | . . . Kills . | . . . Allies Corrupted . | . . . Allies Melted . | . . . Intel | -11 -10 -10 ------- Run | Yrd Mat Min Robot Analysis Total . | . . . Derelict Logs Recovered 1 | . . 1 Drone Launches . | . . . Drone Recoveries . | . . . Exploration | -11 -10 -10 ------------- Run | Yrd Mat Min Turns Passed 825 | 63 562 200 Spaces Moved 625 | 57 452 116 Core 13 | 7 . 6 Treads . | . . . Legs . | . . . Wheels 612 | 50 452 110 Hover . | . . . Flight . | . . . Fastest Speed 50 | 50 90 80 Average Speed 89 | 85 90 90 Slowest Speed 100 | 90 100 100 Overloaded Moves . | . . . Propulsion Burnouts . | . . . Robots Hopped . | . . . Cave-ins Triggered . | . . . Exploration Rate (%) 30 | 4 54 32 Regions Visited 2 Branch Regions 1 Pre-discovered Areas . | . . . Known Exits Taken . | . . . Unknown Exits Taken 2 | 1 1 . Scrap Searched . | . . . Spaces Dug . | . . . Terrain Destroyed . | . . . Melee . | . . . Projectile . | . . . AOE . | . . . Terrain Rammed . | . . . Walls Destroyed . | . . . Machines Disabled . | . . . Actions | -11 -10 -10 --------- Run | Yrd Mat Min Total 803 | 71 525 207 Wait 95 | . 7 88 Move 623 | 56 451 116 Hop . | . . . Pick Up 20 | 8 12 . Fast Attach 7 | . 7 . Attach 9 | 6 3 . Detach . | . . . Swap . | . . . Drop 5 | 1 4 . Fire 43 | . 40 3 Melee 1 | . 1 . Ram . | . . . Kick . | . . . Crush . | . . . Escape Stasis . | . . . Rewire . | . . . Trap . | . . . Miscellaneous . | . . . Route ------- -11/Scrapyard -10/Materials (discovered 2 exits: [*Mat] / [*Min]) -10/Mines (discovered 1 exit: [*Mat]) History --------- Turn | Location | Event 7 | -11/Scrapyard | Discovered new exit (range 16) 64 | -11/Scrapyard | Entered Materials 215 | -10/Materials | Discovered new exit (range 10) 312 | -10/Materials | Build established: Mutant 458 | -10/Materials | Discovered new exit (range 16) 626 | -10/Materials | Entered Mines 805 | -10/Mines | Discovered new exit (range 16) 808 | -10/Mines | Core integrity fell below 50% 815 | -10/Mines | Core integrity fell below 20% 826 | -10/Mines | Destroyed by YI-UF0 with YI-UF0's Doublenader Last Messages --------------- T-07 Excavator is excavating. System corrupted: Matter fused (-6). T-07 Excavator is excavating. YI-UF0: "BLAM!" The unstable cave ceiling collapses. EXIT=FOUND YI-UF0: "WHAAM!" K-01 Serf destroyed. The unstable cave ceiling collapses. Lgt. Nuclear Core destroyed. The unstable cave ceiling collapses. Com. Wheel destroyed. Assault Rifle destroyed. The unstable cave ceiling collapses. Wheel destroyed. K-01 Serf destroyed. The unstable cave ceiling collapses. R-06 Scavenger collects Sml. Matter Pod. The unstable cave ceiling collapses. Lgt. Assault Rifle destroyed. Map ----- +----------------------------------------------------+ | ????????????????????????????????????# #?????? | | ??????????????????????????????####### #??????? | | ??????????????????????????????# #?????????# | | ?????????????????????????? ???# ##### #?????????? | | ?????????????????????????? ???# #???# #?????????? | | ?????????????????????????? ???# #???# #?????????? | | ?????????????????????????? ???# #???# #?????????? | | ?????????????????????????? #??# #???# #?????????? | | ?????????????????????????? #??# #??? ?????????? | | ?????????????????????????? #??# #??? ?????????? | | ?????????????????????????# #??# #??? ?????????? | | ????????????????????###### #??# #???## #????????? | | ?????????????????#### ##?# #????? ????????? | | ???????????????### #?# #?????# ????????? | | ??????????????## #?# ###???? ????????? | | ?????????????## ### ##??? ? ???? | | ???????????# # # ### ??? | | ??????## !# ss ??? | | ??????# % = s ### ??? | | ????????# # ###????????? | | ???????# ## ##??????????? | | ???????# ## ###???????????? | | ????? ########?????????????? | | ?????? #????????????????????? | | ?????? ! g #####????????????????? | | ??????? ! # @ #????????????????? | | ??????? # # #### #????????????????? | | ??????? ####??# #????????????????? | | ???????? r# # ?????# #????????????????? | | ???????? # # ?????# ######???????????? | | ????????? ## ????# #???????????? | | ????????? ### ????###### #???????????? | | ????????????## ### ????????# #?#####?????? | | ?????????????##?? < ????????# ### ##????? | | ????????????????## =%%???????????# #????? | | ?????????????????# ??? ????????????##### #???? | | ???????????????????????????????????????## #??? | | ?????????????????????????????????????????# #??? | | ?????????????????????????????????????????? ####??? | | ???????????????????????????????????????????#?????? | | ?????????????????????????????????????????????????? | | ?????????????????????????????????????????????????? | | ?????????????????????????????????????????????????? | | ?????????????????????????????????????????????????? | | ?????????????????????????????????????????????????? | | | | | | | | | | | +----------------------------------------------------+ Best States ------------- Heat Dissipation 25 Energy Generation 14 Energy Capacity 160 Matter Stores 300 Matter Capacity 300 Sight Range 16 Terrain Scan Density 10 Evasion (%) 44 Offensive Hacking 10 Item Schematics ----------------- None Robot Schematics ------------------ None Fabricated ------------ Nothing Alien Tech Used ----------------- None Achievements -------------- None Challenges ------------ None Game ------ Seed DimensionalAlphaCorpse Manual? 0 Play Time 00:12:23 Cumulative 20.6 hours Start 2025.01.06 @ 11:11:32 End 2025.01.07 @ 06:02:21 Sessions 2 Manual Loads 0 Difficulty Rogue Special Mode None Game No. 39 Rogue 39 Adventurer 0 Explorer 0 Win Type - Total 0 Types 0/0/0/0/0/0/0/0/0 Lore% 14 Gallery% 23 Achievement% 23 Wizard Run 0 Options --------- Layout 1 ASCII 0 Keyboard 0 Movement Mouse Keybinds 0 Fullscreen 1 Font 24/Smallcaps Map View 50x35 Zoom Use 0% Tactical HUD 0 Map Filters NONE Filters NONE Steam 1 RUN: 0e483629-bb92-4897-a11f-5b29f96228ed